Cogmind - Beta 16 @@@ ROGUE MODE // 2025.10.25 @ 08:32:06 Player: Skysub Result: Destroyed by OI-OAP(R) with Subdweller Machine Gun Performance ------------- Evolutions (0) 0 Regions Visited (2) 400 Robots Destroyed (20) 100 Value Destroyed (611) 611 Prototype IDs (0) 0 Alien Tech Used (0) 0 Bonus (-80) -80 TOTAL SCORE: 1031 Bonus ------- Friendly Fire -80 Cogmind --------- Core Integrity 0/250 Matter 272/300 Energy 57/100 System Corruption 0% Temperature Cool (0) Movement Treading (160) Location -10/Subcaves Parts ------- > --- POWER (1) -------- (None) > --- PROPULSION (2) --- Light Treads Spiked Treads > --- UTILITY (2) ------ (None) > --- WEAPON (2) ------- Medium Laser Subdweller Shrapnel Launcher > --- INVENTORY (5) ---- Compact Wheel Small Storage Unit Medium Storage Unit Peak State ------------ > --- POWER ------------ Light Ion Engine > --- PROPULSION ------- Light Treads Light Treads > --- UTILITY ---------- Medium Storage Unit Improved Terrain Scanner > --- WEAPON ----------- Assault Rifle Subdweller Shrapnel Launcher > --- INVENTORY -------- Ion Engine Wheel Compact Wheel Small Storage Unit Seismic Detector Scrap Shield Medium Laser Assault Rifle [Rating: 11] Favorites ----------- Power Light Ion Engine Engine Light Ion Engine Propulsion Light Treads Treads Light Treads Utility Medium Storage Unit Device Seismic Detector Storage Medium Storage Unit Protection Scrap Shield Weapon Assault Rifle Energy Gun Medium Laser Ballistic Gun Assault Rifle Launcher Subdweller Shrapnel Launcher Build | -11 -10 -10 ------- Run | Yrd Mat Sub Slots Evolved . | . . . Power . | . . . Propulsion . | . . . Utility . | . . . Weapon . | . . . Parts Attached 14 | 9 1 4 Power 1 | 1 . . Engine 1 | 1 . . Core . | . . . Reactor . | . . . Propulsion 3 | 2 . 1 Treads 3 | 2 . 1 Leg . | . . . Wheel . | . . . Hover . | . . . Flight . | . . . Utility 5 | 3 1 1 Device 2 | 2 . . Storage 2 | 1 1 . Processor . | . . . Hackware . | . . . Protection 1 | . . 1 Artifact . | . . . Weapon 5 | 3 . 2 Energy Gun 1 | 1 . . Energy Cannon . | . . . Ballistic Gun 3 | 2 . 1 Ballistic Cannon . | . . . Launcher 1 | . . 1 Special Weapon . | . . . Impact Weapon . | . . . Slashing Weapon . | . . . Piercing Weapon . | . . . Special Melee Weapon . | . . . Unidentified Prototypes . | . . . Parts Lost 6 | . . 6 Power 1 | . . 1 Propulsion 1 | . . 1 Utility 2 | . . 2 Weapon 2 | . . 2 Highest Loss Streak 4 | . . 4 To Critical Strikes . | . . . Average Backups 7 | 3 5 7 Power . | . 1 . Propulsion 2 | 1 2 2 Utility 2 | . 1 2 Weapon 1 | . 1 1 Tool/Special . | . . . Unused Backups 4 | . . 4 Power 1 | . . 1 Propulsion 3 | . . 3 Utility . | . . . Weapon . | . . . Tool/Special . | . . . Average Slot Usage (%) 97 | . 100 97 Engine 13 | . 14 13 Treads 26 | . 28 26 Device 13 | . 14 13 Storage 13 | . 14 13 Ballistic Gun 21 | . 28 20 Launcher 6 | . . 7 Peak Build Rating 11 | 9 7 11 Average Rating 9 | 5 7 9 On Entrance 4 | . 7 7 Avg Prop Armor Cover (%) . | . . . Naked Turns . | . . . Heaviest Build 26 | 13 18 26 Greatest Support 40 | 40 40 40 Greatest Overweight (x) . | . . . Average Overweight (x) . | . . . Largest Inventory Capacity 10 | 8 10 10 Average Capacity 9 | 7 9 9 Most Carried 10 | 5 6 10 Average Carried 8 | 3 5 8 Final Capacity 10 | 8 10 5 Final Carried 6 | 5 6 3 Class Distribution -------------------- 100% | Mutant Dominant Class ---------------- Mutant | -10/Materials Mutant | -10/Subcaves Resources | -11 -10 -10 ----------- Run | Yrd Mat Sub Matter Collected 812 | 310 . 502 Remotely . | . . . Salvage Created 650 | 113 . 537 Parts 41 | 9 . 32 Haulers Intercepted . | . . . Recyclers Shooed . | . . . Parts Field Recycled . | . . . Retrieved Matter . | . . . Parts Self-Destructed 21 | . . 21 Prevented . | . . . Parts Restored . | . . . Kills | -11 -10 -10 ------- Run | Yrd Mat Sub Combat Hostiles Destroyed 17 | . . 17 Guns 7 | . . 7 AOE 10 | . . 10 Classes Destroyed 6 | 2 . 4 Tunneler 2 | 2 . . Recycler 1 | 1 . . Swarmer 3 | . . 3 Grunt 2 | . . 2 Subdweller 12 | . . 12 Scientist 1 | . . 1 Best Kill Streak 4 | 2 . 4 Combat Bots Only 4 | . . 4 Max Kills in Single Turn 2 | 1 . 2 Gunslinging . | . . . Exploded 2 | . . 2 Melee . | . . . Uniques/NPCs Destroyed . | . . . Combat | -11 -10 -10 -------- Run | Yrd Mat Sub Hostile Shots Fired 62 | . . 62 Missed 17 | . . 17 Hits 45 | . . 45 Projectile 45 | . . 45 Damage Taken 1094 | . . 1094 Core 261 | . . 261 Absorbed by Shields . | . . . Core Remaining (%) 100 | 100 . . Volleys Fired 61 | 5 . 56 Largest 2 | 2 . 2 Hottest 60 | 40 . 60 Shots Fired 97 | 10 . 87 Gun 85 | 10 . 75 Cannon . | . . . Launcher 12 | . . 12 Special . | . . . Kinetic 93 | 10 . 83 Thermal 4 | . . 4 Explosive . | . . . Electromagnetic . | . . . Robot Hit Streak 16 | 5 . 16 Robot Miss Streak 4 | 1 . 4 Penetration Max . | . . . Secondary Targets . | . . . Shots Hit Robots 56 | 7 . 49 Core Hits 33 | 3 . 30 Critical Kills 1 | . . 1 Critical Parts Destroyed . | . . . Critical Strikes 2 | . . 2 Burn 1 | . . 1 Destroy 1 | . . 1 Melee Attacks . | . . . Impact . | . . . Slashing . | . . . Piercing . | . . . Sneak Attacks . | . . . Combat Hostiles . | . . . Follow-up Attacks . | . . . Damage Inflicted 1553 | 102 . 1451 Guns 744 | 102 . 642 Cannons . | . . . Explosions 809 | . . 809 Melee . | . . . Ramming . | . . . Kinetic 1503 | 102 . 1401 Thermal 50 | . . 50 Explosive . | . . . Electromagnetic . | . . . Impact . | . . . Slashing . | . . . Piercing . | . . . Highest Corruption . | . . . Average Corruption . | . . . Corruption Purged . | . . . Corruption Blocked . | . . . Overload Shots . | . . . Overflow Damage 19 | . . 19 Projectiles . | . . . Explosions 19 | . . 19 Melee . | . . . Knockbacks . | . . . Impact . | . . . Kinetic . | . . . Secondary . | . . . Self-Inflicted Damage 218 | . . 218 Shots 5 | . . 5 Rammed . | . . . Targets Rammed . | . . . Kicked . | . . . Crushed . | . . . Highest Temperature . | . . . Average Temperature . | . . . Received Heat Transfer 222 | . . 222 Siege Activations . | . . . Martial Activations . | . . . Shielding Activations . | . . . Robots Disrupted . | . . . Combat Hostiles . | . . . Robots Corrupted . | . . . Combat Hostiles . | . . . Parts Fried . | . . . Impact Corruptions . | . . . Robots Melted . | . . . Combat Hostiles . | . . . Parts Melted 1 | . . 1 Heat Transferred 222 | . . 222 Parts Sabotaged . | . . . Parts Stolen . | . . . Parts Stripped . | . . . Power Chain Reactions . | . . . Alert | -11 -10 -10 ------- Run | Yrd Mat Sub Maximum Alert Level . | . . . Low Security (%) 100 | 100 100 . Level 1 . | . . . Level 2 . | . . . Level 3 . | . . . Level 4 . | . . . Level 5 . | . . . High Security . | . . . Max Security . | . . . Peak Influence 5 | 5 . . Initial . | . . . Average . | 1 . . Influence Increases 135 | 15 . 120 Destroy 0b10 Robot/C 100 | . . 100 Destroy 0b10 Robot/NC 15 | 15 . . Destroy Leader 20 | . . 20 Influence Decreases 135 | 15 . 120 Time Decay 135 | 15 . 120 Squads Dispatched . | . . . Investigation . | . . . Extermination . | . . . Reinforcement . | . . . Assault . | . . . Garrison . | . . . Intercept . | . . . Searches Triggered . | . . . Construction Impeded . | . . . Haulers Reinforced . | . . . Active Scanning Responses . | . . . Cargo Convoy Interrupts . | . . . Stealth | -11 -10 -10 --------- Run | Yrd Mat Sub Distress Signals . | . . . Communications Jammed . | . . . Distress Signals . | . . . Times Spotted 23 | . . 23 Peak Tracking Total 3 | . . 3 Tactical Retreats . | . . . Traps | -11 -10 -10 ------- Run | Yrd Mat Sub Traps Triggered 1 | . . 1 Indirectly . | . . . Trap Hack Attempts . | . . . Triggered . | . . . Disarmed . | . . . Reprogrammed . | . . . Reused . | . . . Traps Extracted . | . . . Installed . | . . . Triggered . | . . . Machines | -11 -10 -10 ---------- Run | Yrd Mat Sub Machines Disabled . | . . . Max in Single Turn . | . . . Machines Repaired . | . . . Machines Dismantled . | . . . Machines Sabotaged . | . . . Overloaded Fab Kills . | . . . Hacking | -11 -10 -10 --------- Run | Yrd Mat Sub Machines Accessed . | . . . Terminals . | . . . Fabricators . | . . . Repair Stations . | . . . Recycling Units . | . . . Scanalyzers . | . . . Garrison Access . | . . . Total Hacks . | . . . Successful . | . . . Failed . | . . . Catastrophic . | . . . Database Lockouts . | . . . Manual . | . . . Terminals . | . . . Fabricators . | . . . Repair Stations . | . . . Recycling Units . | . . . Scanalyzers . | . . . Garrison Access . | . . . Terminal Hacks . | . . . Fabricator Hacks . | . . . Repair Station Hacks . | . . . Recycling Unit Hacks . | . . . Scanalyzer . | . . . Garrison Access Hacks . | . . . Unauthorized Hacks . | . . . Terminals . | . . . Fabricators . | . . . Repair Stations . | . . . Recycling Units . | . . . Scanalyzers . | . . . Garrison Access . | . . . Data Cores Recovered . | . . . Used . | . . . Hacking Detections . | . . . Full Trace Events . | . . . Feedback Events . | . . . Feedback Blocked . | . . . Robot Schematics Acquired . | . . . Robots Built . | . . . Authchips . | . . . Time . | . . . Total Robot Build Rating . | . . . Part Schematics Acquired . | . . . Parts Built . | . . . Authchips . | . . . Time . | . . . Total Part Build Rating . | . . . Part Studies Acquired . | . . . Parts Repaired . | . . . Time . | . . . Parts Recycled . | . . . Recycled Matter . | . . . Retrieved Matter . | . . . Retrieved Components . | . . . Parts Scanalyzed . | . . . Part Schematics Acquired . | . . . Parts Damaged . | . . . Bothacking | -11 -10 -10 ------------ Run | Yrd Mat Sub Used RIF Installer . | . . . Robots Hacked . | . . . Non-combat . | . . . Combat . | . . . Robot Hacks Applied . | . . . Relay Couplers Released . | . . . Fabnet Peak Effective % . | . . . Robots Rewired . | . . . Allies Hacked . | . . . Hacks Repelled . | . . . Allies | -11 -10 -10 -------- Run | Yrd Mat Sub Total Allies . | . . . Largest Group . | . . . Highest-Rated Group . | . . . Highest-Rated Ally . | . . . Total Orders . | . . . Ally Attacks . | . . . Total Damage . | . . . Kills . | . . . Allies Corrupted . | . . . Allies Melted . | . . . Intel | -11 -10 -10 ------- Run | Yrd Mat Sub Active Infowar (turns) 1806 | 20 139 1647 Terrain 553 | 7 . 546 Seismic 1253 | 13 139 1101 Robot Analysis Total . | . . . Derelict Logs Recovered 1 | . . 1 Drone Launches . | . . . Drone Recoveries . | . . . Exploration | -11 -10 -10 ------------- Run | Yrd Mat Sub Turns Passed 2010 | 168 139 1703 Spaces Moved 1061 | 88 53 920 Core 5 | 5 . . Treads 1056 | 83 53 920 Legs . | . . . Wheels . | . . . Hover . | . . . Flight . | . . . Fastest Speed 50 | 50 160 160 Average Speed 159 | 153 160 160 Slowest Speed 160 | 160 160 160 Overloaded Moves . | . . . Propulsion Burnouts . | . . . Robots Hopped . | . . . Potential Cave-ins . | . . . Cave-ins Triggered . | . . . Exploration Rate (%) 26 | 7 15 56 Regions Visited 2 Branch Regions 1 Pre-discovered Areas 2 | . . 2 Known Exits Taken . | . . . Unknown Exits Taken 2 | 1 1 . Scrap Searched 3 | . . 3 Spaces Dug 20 | . . 20 Terrain Destroyed 193 | . . 193 Melee . | . . . Projectile . | . . . AOE 193 | . . 193 Terrain Rammed . | . . . Walls Destroyed . | . . . Machines Disabled . | . . . Actions | -11 -10 -10 --------- Run | Yrd Mat Sub Total 1273 | 106 107 1060 Wait 118 | . 54 64 Move 1059 | 87 52 920 Hop . | . . . Pick Up 10 | 5 . 5 Fast Attach 9 | 7 . 2 Attach 3 | . . 3 Detach . | . . . Swap 9 | 2 1 6 Drop 3 | . . 3 Fire 61 | 5 . 56 Melee . | . . . Ram . | . . . Kick . | . . . Crush . | . . . Escape Stasis . | . . . Rewire 1 | . . 1 Trap . | . . . Miscellaneous . | . . . Route ------- -11/Scrapyard -10/Materials -10/Subcaves (discovered 3 exits: [*Mat x2] / [*Scr]) History --------- Turn | Location | Event 9 | -11/Scrapyard | Discovered new exit (range 14) 169 | -11/Scrapyard | Entered Materials 170 | -10/Materials | Met a group of wandering Federalists 284 | -10/Materials | Discovered new exit (range 5) 303 | -10/Materials | Build established: Mutant 308 | -10/Materials | Entered Subcaves 308 | -10/Subcaves | Accompanied by 2 allies 309 | -10/Subcaves | Continued accompanying wandering Federalists (6) 309 | -10/Subcaves | Approached by a straggling Scientist 434 | -10/Subcaves | Learned location of Zion (-7) 480 | -10/Subcaves | Lost 7 allies 512 | -10/Subcaves | Discovered new exit (range 12) 540 | -10/Subcaves | Wandering Federalist uncovered a shortcut to Scraptown 816 | -10/Subcaves | Shifting Twisted Machinery released Flamer 938 | -10/Subcaves | A swath of the cavern ceiling suddenly collapsed 1092 | -10/Subcaves | Discovered new exit (range 14) 1307 | -10/Subcaves | A swath of the cavern ceiling suddenly collapsed 1447 | -10/Subcaves | Core integrity fell below 50% 1473 | -10/Subcaves | Core integrity fell below 20% 1588 | -10/Subcaves | Shifting Twisted Machinery released Sub. Monowheel 1654 | -10/Subcaves | Disturbed a concealed Subdweller 1709 | -10/Subcaves | Ambushed by Subdweller buried in earth 1773 | -10/Subcaves | Disturbed a concealed Subdweller 1840 | -10/Subcaves | Met a Zionite searching for "candidates" 1988 | -10/Subcaves | Visited 4L-MR0's lab 2011 | -10/Subcaves | Destroyed by OI-OAP(R) with Subdweller Machine Gun Last Messages --------------- 01789_ Acquired 25 matter. 01830_ IX-4RR(z): "She is not going to be happy we haven't found any suitable candidates yet." 01840_ IX-4RR(z): "Hey you! It's really dangerous down here, I feel that you could die at any moment. For your health and safety might I suggest a trip to Zion?" World map confirmed: -7/Zion. 01987_ Lgt. Ion Engine destroyed. 01987_ Sub. Machine Gun destroyed. 01988_ Assault Rifle destroyed. 01990_ Dropped Seismic Detector. 01991_ Dropped Med. Storage Unit. 01994_ Acquired Med. Storage Unit. 01996_ Acquired Lgt. Treads. 01999_ Acquired Med. Laser. 02002_ XA-CKY(R) destroyed. 02002_ HG-DQ7(R) destroyed. 02003_ Acquired 27 matter. 02009_ Scrap Shield destroyed. 02010_ OI-OAP(R) suffers critical hit (Burn). Map ----- +----------------------------------------------------+ | ?????????????????????????????????????????????????? | | ?????????????????????????????????????????????????? | | ?????????????????????????????????????????????????? | | ?????????????????????????????????????????????????? | | ?????????????????????????????????????????????????? | | ?????????????????????????????????????????????????? | | ?????????????????????????????????????????????????? | | ?????????????????????????????????????????????????? | | ?????????????????????????????????????????????????? | | ?????????????????????????????????????????????????? | | ?????????????????????????????????????????????????? | | ?????????????????????????????????????????????????? | | ?????????????????????????????????????????????????? | | ?????????????????????????????????????????????????? | | ?????????????????????????????????????????????????? | | ?????????????????????????????????????????????????? | | ?????????????????????????????????????????????????? | | ?????????????????????????????????????????????????? | | ?????????????????????????????????????????????????? | | ?????????????????????????????????????????????????? | | ?????????????????????????????????????????????????? | | ?????????????????????????????????????????????????? | | ??????????????????????#####??????????????????????? | | ?????????????????????## ###????????????????????? | | ?????????????????????#;;;;; ##???????????????????? | | ?????????????####????#; @;; #???????????????????? | | ?????????????#!" ??#;R %*; #???????????????????? | | ??????????????## # !&! ; #???????????????????? | | ??????????????"""X" ;= ;##???????????????????? | | ??????????????"""""""# = ;#????????????????????? | | ???????????????#####?# ##????????????????????? | | ?????????????????????##< #?????????????????????? | | ????????????????######<< < #?????????????????????? | | ????????????????# # <<##?????????????????????? | | ????????????????## <#??????????????????????? | | ????????????????#" ## ##??????????????????????? | | ??????????????### "#####???????????????????????? | | ??????????##### " ### #???????????????????? | | ??????????# #???????????????????? | | ??????????# #### ### #???????????????????? | | ??????????# ??## ##?# #???????????????????? | | ?????????## ?## #??### ?????????????????? | | ????????## ## #?????? ????????????????? | | ????##### ##???????# %????????????????? | | ???## ##?????????#?????????????????? | | ???# #???????????????????????????? | | #### % ##???????????????????????????? | | #?# ##????????????????????????????? | | #?# ###?????????????????????????????? | | #?# #### #???????????????????????????????? | +----------------------------------------------------+ Best States ------------- Heat Dissipation 25 Energy Generation 10 Energy Capacity 125 Matter Stores 300 Matter Capacity 300 Sight Range 16 Terrain Scan Range 16 Terrain Scan Density 10 Armor Coverage 800 Evasion (%) 40 Recoil Reduction 2 Item Schematics ----------------- None Robot Schematics ------------------ None Fabricated ------------ Nothing Repaired ---------- Nothing Studied --------- None Alien Tech Used ----------------- None Achievements -------------- Strength In Numbers Challenges ------------ None Game ------ Seed XenonBoltSplitter Manual? 0 Play Time 00:11:37 Cumulative 268.2 hours Start 2025.10.25 @ 08:19:18 End 2025.10.25 @ 08:32:06 Sessions 1 Manual Loads 0 Difficulty Rogue Special Mode None Game No. 292 Rogue 292 Adventurer 0 Explorer 0 Win Type - Total 11 Types 5/0/3/1/0/0/0/1/0/1 Lore% 76 Gallery% 74 Achievement% 52 Wizard Run 0 Options --------- Layout 1 ASCII 0 Keyboard 1 Movement Numpad Keybinds 0 Fullscreen 2 Font 32/SmallcapsGlow Map View 77x35 Zoom Use 0% Tactical HUD 1 Map Filters NONE Filters NONE Steam 1 RUN: aeaeed19-a876-464e-9d48-bf0c5e9418c4